fUSD/lending_fUSD_20251222
["ID","MTS","AMOUNT","RATE_DAILY","PERIOD"]
[399445185,1766361601619,1200.0,9.545e-05,2]
[399445186,1766361601665,300.0,9.545e-05,2]
[399445191,1766361611570,150.0,9.545e-05,2]
[399445192,1766361613086,500.0,9.545e-05,2]
[399445194,1766361614558,151.0,9.543e-05,2]
[399445208,1766361645398,500.0,9.545e-05,2]
[399445218,1766361661599,300.0,9.545e-05,2]
[399445223,1766361676965,500.0,9.545e-05,2]
[399445225,1766361678697,5002.38059,0.000351,30]
[399445233,1766361694347,1420.64970827,9.536e-05,2]
[399445234,1766361694375,10000.01,9.536e-05,2]
[399445235,1766361694404,2293.04901263,9.536e-05,2]
[399445238,1766361697420,457.672,9.355e-05,2]
[399445239,1766361697505,457.672,0.00034516,39]
[399445242,1766361701924,500.0,0.000352,120]
[399445246,1766361709173,500.0,9.545e-05,2]
[399445247,1766361713308,500.0,0.000352,30]
[399445249,1766361721980,300.0,9.545e-05,2]
[399445250,1766361725927,500.0,0.000352,30]
[399445252,1766361738612,543.0,0.000353,30]
[399445253,1766361738668,500.0,9.545e-05,2]
[399445255,1766361750521,500.0,9.446e-05,2]
[399445258,1766361773480,500.0,9.545e-05,2]
[399445260,1766361781218,300.0,9.545e-05,2]
[399445261,1766361781575,150.0,9.545e-05,2]
[399445263,1766361782799,4499.28898737,9.536e-05,2]
[399445264,1766361782830,10000.01,9.536e-05,2]
[399445265,1766361783171,10000.01,9.536e-05,2]
[399445266,1766361783202,10000.01,9.536e-05,2]
[399445267,1766361783231,10000.01,9.536e-05,2]
[399445268,1766361783274,10000.01,9.536e-05,2]
[399445269,1766361783305,10000.01,9.536e-05,2]
[399445270,1766361783334,10000.01,9.536e-05,2]
[399445271,1766361783362,10000.01,9.536e-05,2]
[399445272,1766361783391,10000.01,9.536e-05,2]
[399445273,1766361784745,1000.0,0.0003561,30]
[399445316,1766361805445,1000.0,0.0003561,30]
[399445342,1766361811198,1000.0,0.0003561,30]
[399445343,1766361819371,1000.0,0.0003561,30]
[399445344,1766361828762,671.0,0.0003561,30]
[399445347,1766361833787,1000.0,0.0003561,30]
[399445348,1766361847490,-300.0,9.535e-05,2]
[399445349,1766361847568,-250.0,9.536e-05,2]
[399445356,1766361871488,-4841.4809136,9.535e-05,2]
[399445359,1766361873456,-7132.29953062,9.536e-05,2]
[399445360,1766361873822,-10000.01,9.536e-05,2]
[399445361,1766361874129,-10000.01,9.536e-05,2]
[399445364,1766361886192,-10000.01,9.536e-05,2]
[399445365,1766361886460,-10000.01,9.536e-05,2]
[399445367,1766361896084,-10000.01,9.536e-05,2]
[399445368,1766361896391,-10000.01,9.536e-05,2]
[399445369,1766361896729,-10000.01,9.536e-05,2]
[399445370,1766361897032,-10000.01,9.536e-05,2]
[399445371,1766361909334,-266.0,9.535e-05,2]
[399445372,1766361909416,-300.0,9.535e-05,2]
[399445373,1766361909498,-1200.0,9.535e-05,2]
[399445374,1766361909591,-250.0,9.536e-05,2]
[399445376,1766361910022,-5968.01,9.536e-05,2]
[399445378,1766361926289,-10000.01,9.536e-05,2]
[399445379,1766361926752,-10000.01,9.536e-05,2]
[399445380,1766361927226,-10000.01,9.536e-05,2]
[399445381,1766361927906,-10000.01,9.536e-05,2]
[399445382,1766361934867,-10000.01,9.536e-05,2]
[399445383,1766361948249,-10000.01,9.536e-05,2]
[399445385,1766361948680,-10000.01,9.536e-05,2]
[399445386,1766361949185,-10000.01,9.536e-05,2]
[399445387,1766361949653,-10000.01,9.536e-05,2]
[399445390,1766361961348,-10000.01,9.536e-05,2]
[399445393,1766361973116,-150.0,9.535e-05,2]
[399445394,1766361973267,-9700.01,9.536e-05,2]
[399445395,1766361976466,-10000.01,9.536e-05,2]
[399445396,1766361979204,-10000.01,9.536e-05,2]
[399445397,1766361979564,-10000.01,9.536e-05,2]
[399445398,1766361993956,-10000.01,9.536e-05,2]
[399445400,1766362004321,-10000.01,9.536e-05,2]
[399445401,1766362004744,-10000.01,9.536e-05,2]
[399445402,1766362005077,-3007.36417719,9.536e-05,2]
[399445403,1766362005162,-3985.28164562,9.536e-05,2]
[399445404,1766362006092,-10000.01,9.536e-05,2]
[399445405,1766362006387,-10000.01,9.536e-05,2]
[399445406,1766362006656,-10000.01,9.536e-05,2]
[399445407,1766362006935,-10000.01,9.536e-05,2]
[399445408,1766362007296,-10000.01,9.536e-05,2]
[399445414,1766362031356,-10000.01,9.536e-05,2]
[399445415,1766362031698,-10000.01,9.536e-05,2]
[399445416,1766362032022,-10000.01,9.536e-05,2]
[399445417,1766362032718,-10000.01,9.536e-05,2]
[399445418,1766362032808,-10000.01,9.536e-05,2]
[399445419,1766362032928,-1829.1588325,9.536e-05,2]
[399445420,1766362033005,-6341.692335,9.536e-05,2]
[399445421,1766362033244,-500.0,9.545e-05,2]
[399445422,1766362033337,-1224.04127782,9.545e-05,2]
[399445423,1766362035005,2540.82798467,9.545e-05,2]
[399445437,1766362140967,1000.0,0.00035614,30]
[399445438,1766362141121,1000.0,0.00035199,30]
[399445439,1766362141372,1000.0,0.00034515,30]
[399445441,1766362145817,1078.3998157,0.00035616,120]
[399445442,1766362201253,300.0,9.545e-05,2]
[399445443,1766362201300,1200.0,9.545e-05,2]
[399445445,1766362231891,-653.82212702,9.546e-05,2]
[399445446,1766362231903,-346.17787298,9.546e-05,2]
[399445447,1766362231913,-357.1028297,9.546e-05,2]
[399445448,1766362231961,-477.23143448,9.546e-05,2]
[399445449,1766362231973,-297.53721885,9.546e-05,2]
[399445450,1766362231984,-270.69232887,9.546e-05,2]
[399445451,1766362231995,-6030.11,9.546e-05,2]
[399445452,1766362232006,-5571.38598384,9.546e-05,2]
[399445453,1766362232018,-877.03157648,9.546e-05,2]
[399445454,1766362232030,-1070.98248626,9.546e-05,2]
[399445455,1766362232047,-987.4479749,9.546e-05,2]
[399445456,1766362232058,-4411.22056662,9.546e-05,2]
[399445457,1766362232068,-197.64230935,9.546e-05,2]
[399445458,1766362232079,-43371.97171266,9.556e-05,2]
[399445459,1766362232090,-1063.55689978,9.556e-05,2]
[399445460,1766362232102,-289.96440231,9.556e-05,2]
[399445461,1766362232115,-347.43508066,9.556e-05,2]
[399445462,1766362232128,-20271.39612398,9.556e-05,2]
[399445463,1766362232140,-2581.03791468,9.556e-05,2]
[399445464,1766362232153,-1427.00894998,9.556e-05,2]
[399445465,1766362232165,-2804.13271573,9.556e-05,2]
[399445466,1766362232176,-6328.0736146,9.556e-05,2]
[399445467,1766362232190,-11197.49070691,9.556e-05,2]
[399445468,1766362232202,-529.88865121,9.556e-05,2]
[399445470,1766362232218,-1991.73526069,9.556e-05,2]
[399445479,1766362237869,-5959.18201533,9.556e-05,2]
[399445484,1766362238077,-7325.901737,9.556e-05,2]
[399445485,1766362238465,-2524.94000031,9.556e-05,2]
[399445486,1766362238479,-35495.2652922,9.556e-05,2]
[399445487,1766362238491,-779.24362248,9.556e-05,2]
[399445488,1766362238518,-10000.01,9.556e-05,2]
[399445489,1766362238529,-7770.88623359,9.556e-05,2]
[399445490,1766362238546,-837940.8790659,9.556e-05,2]
[399445491,1766362238556,-1613.9,9.656e-05,2]
[399445492,1766362238566,-500.0,9.759e-05,2]
[399445493,1766362238577,-980.68,9.819e-05,2]
[399445494,1766362238587,-1852.42,9.826e-05,2]
[399445495,1766362238597,-590.54,9.847e-05,2]
[399445496,1766362238607,-150.0,9.999e-05,2]
[399445497,1766362238618,-151.0,0.0001,2]
[399445498,1766362238631,-151.0,0.0001,2]
[399445499,1766362238641,-151.0,0.0001,2]
[399445500,1766362238651,-151.0,0.0001,2]
[399445501,1766362238661,-151.0,0.0001,2]
[399445502,1766362238671,-151.0,0.0001,2]
[399445503,1766362238681,-151.0,0.0001,2]
[399445504,1766362238691,-151.0,0.0001,2]
[399445505,1766362238703,-151.0,0.0001,2]
[399445506,1766362238714,-151.0,0.0001,2]
[399445507,1766362238723,-151.0,0.0001,2]
[399445508,1766362238733,-151.0,0.0001,2]
[399445509,1766362238743,-151.0,0.0001,2]
[399445510,1766362238752,-151.0,0.0001,2]
[399445511,1766362238762,-151.0,0.0001,2]
[399445512,1766362238782,-151.0,0.0001,2]
[399445513,1766362238793,-151.0,0.0001,2]
[399445514,1766362238803,-151.0,0.0001,2]
[399445515,1766362238813,-151.0,0.0001,2]
[399445516,1766362238822,-151.0,0.0001,2]
[399445517,1766362238832,-151.0,0.0001,2]
[399445518,1766362238842,-231.18247938,0.0001,2]
[399445519,1766362238852,-1613.9,0.00010014,2]
[399445520,1766362238862,-200.0,0.00010198,2]
[399445521,1766362238873,-1613.9,0.00010372,2]
[399445522,1766362238883,-299.99,0.00010372,2]
[399445523,1766362238894,-6689.5733,0.000104,2]
[399445524,1766362238904,-235.9438,0.000104,2]
[399445525,1766362238914,-511.66,0.00010489,2]
[399445526,1766362238924,-293.31470101,0.0001049,2]
[399445527,1766362238934,-999.99,0.00010499,2]
[399445528,1766362238944,-150.99,0.00010499,2]
[399445529,1766362238955,-420.0,0.00010499,2]
[399445530,1766362238965,-1680.0,0.00010499,2]
[399445531,1766362238975,-500.0,0.000105,2]
[399445532,1766362238985,-499.99,0.000105,2]
[399445533,1766362238995,-13312.29,0.000105,2]
[399445534,1766362239004,-9999.99,0.000105,2]
[399445535,1766362239014,-150.99,0.000105,2]
[399445536,1766362239024,-2023.23,0.000105,2]
[399445537,1766362239034,-4999.99,0.000105,2]
[399445538,1766362239046,-9999.99,0.000105,2]
[399445539,1766362239056,-9999.99,0.000105,2]
[399445540,1766362239066,-250.0,0.000105,2]
[399445541,1766362239076,-250.0,0.000105,2]
[399445542,1766362239085,-1613.9,0.00010729,2]
[399445543,1766362239095,-500.0,0.00010774,2]
[399445544,1766362239105,-8382.2395,0.00010791,2]
[399445545,1766362239115,-16515.08,0.00010829,2]
[399445546,1766362239124,-13713.7087209,0.00010889,2]
[399445547,1766362239134,-364292.5843408,0.00010891,2]
[399445548,1766362239144,-108170.9511675,0.00010897,2]
[399445549,1766362239154,-4841.4809136,0.00010927,2]
[399445550,1766362239163,-3669.8,0.00010932,2]
[399445551,1766362239174,-183.12,0.00010959,2]
[399445552,1766362239184,-1047.98,0.00010989,2]
[399445553,1766362239194,-255.0,0.00010999,2]
[399445554,1766362239203,-631.78490398,0.00011002,2]
[399445555,1766362239213,-500.0,0.00011048,2]
[399445556,1766362239223,-1613.9,0.00011087,2]
[399445557,1766362239233,-42835.73625809,0.00011099,2]
[399445558,1766362239243,-42835.73625802,0.00011099,2]
[399445559,1766362239252,-1374.35185232,0.00011101,3]
[399445560,1766362239262,-42835.73625802,0.00011102,2]
[399445561,1766362239271,-291.33,0.00011233,2]
[399445562,1766362239281,-500.0,0.00011322,2]
[399445563,1766362239291,-1613.9,0.00011445,2]
[399445564,1766362239301,-157.0,0.00011549,2]
[399445565,1766362239311,-2351.0,0.00011549,2]
[399445566,1766362239321,-500.0,0.00011596,2]
[399445567,1766362239331,-384.43,0.00011748,2]
[399445568,1766362239341,-19975.44,0.00011781,2]
[399445569,1766362239350,-1613.9,0.00011802,2]
[399445570,1766362239359,-500.0,0.0001187,2]
[399445571,1766362239369,-42835.73625802,0.00011931,2]
[399445572,1766362239378,-1832.75,0.00012055,2]
[399445573,1766362239388,-3728.0689,0.00012085,2]
[399445574,1766362239398,-433.0,0.00012099,2]
[399445575,1766362239407,-500.0,0.00012144,2]
[399445576,1766362239417,-1613.9,0.0001216,2]
[399445577,1766362239426,-2234.03011894,0.00012236,2]
[399445578,1766362239436,-13713.7087209,0.00012243,2]
[399445579,1766362239446,-151.0,0.00012243,2]
[399445580,1766362239456,-364292.5843408,0.00012246,2]
[399445581,1766362239465,-108170.9511675,0.00012259,2]
[399445582,1766362239475,-4841.4809136,0.0001232,2]
[399445583,1766362239486,-411.45,0.00012411,2]
[399445584,1766362239495,-500.0,0.00012418,2]
[399445585,1766362239505,-1613.9,0.00012518,2]
[399445586,1766362239516,-500.0,0.00012692,2]
[399445587,1766362239526,-3292.0,0.00012704,2]
[399445588,1766362239536,-422.67,0.00012717,2]
[399445589,1766362239547,-42835.73625802,0.00012759,2]
[399445590,1766362239558,-1613.9,0.00012875,2]
[399445591,1766362239567,-309.22801739,0.00012966,2]
[399445592,1766362239576,-62127.16,0.00013079,2]
[399445593,1766362239585,-1613.9,0.00013233,2]
[399445594,1766362239594,-736.0,0.00013309,2]
[399445595,1766362239604,-422.67,0.00013423,2]
[399445596,1766362239613,-42835.73625802,0.00013587,2]
[399445597,1766362239623,-1613.9,0.0001359,2]
[399445598,1766362239632,-13713.7087209,0.00013596,2]
[399445599,1766362239641,-151.0,0.00013598,2]
[399445600,1766362239651,-1126.423991,0.00013601,2]
[399445601,1766362239660,-1126.423991,0.00013601,2]
[399445602,1766362239670,-1126.423991,0.00013601,2]
[399445603,1766362239680,-1126.423991,0.00013601,2]
[399445604,1766362239689,-165.199225,0.00013601,2]
[399445605,1766362239699,-165.199225,0.00013601,2]
[399445606,1766362239707,-165.199225,0.00013601,2]
[399445607,1766362239717,-165.199225,0.00013601,2]
[399445608,1766362239727,-364292.5843408,0.00013601,2]
[399445609,1766362239737,-108170.9511675,0.0001362,2]
[399445610,1766362239747,-500.0,0.00013643,2]
[399445611,1766362239757,-500.0,0.00013643,2]
[399445612,1766362239767,-167.14597224,0.00013643,2]
[399445613,1766362239776,-500.0,0.00013643,2]
[399445614,1766362239786,-535.22474582,0.00013643,2]
[399445615,1766362239797,-500.0,0.00013643,2]
[399445616,1766362239806,-161.51413254,0.00013643,2]
[399445617,1766362239816,-500.0,0.00013643,2]
[399445618,1766362239825,-501.40165484,0.00013643,2]
[399445619,1766362239835,-500.0,0.00013643,2]
[399445620,1766362239844,-500.25022933,0.00013643,2]
[399445621,1766362239853,-500.0,0.00013643,2]
[399445622,1766362239862,-500.0,0.00013643,2]
[399445623,1766362239871,-500.0,0.00013643,2]
[399445624,1766362239881,-500.0,0.00013643,2]
[399445625,1766362239891,-201.68060624,0.00013643,2]
[399445626,1766362239900,-500.0,0.00013643,2]
[399445627,1766362239910,-500.0,0.00013643,2]
[399445628,1766362239920,-235.55154497,0.00013643,2]
[399445629,1766362239929,-500.0,0.00013643,2]
[399445630,1766362239938,-500.0,0.00013643,2]
[399445631,1766362239948,-484.06013596,0.00013643,2]
[399445632,1766362239957,-500.0,0.00013643,2]
[399445633,1766362239967,-500.0,0.00013643,2]
[399445634,1766362239977,-500.0,0.00013643,2]
[399445635,1766362239986,-500.0,0.00013643,2]
[399445636,1766362239995,-500.0,0.00013643,2]
[399445637,1766362240006,-550.17823057,0.00013643,2]
[399445638,1766362240015,-500.0,0.00013643,2]
[399445639,1766362240025,-500.0,0.00013643,2]
[399445640,1766362240034,-500.0,0.00013643,2]
[399445641,1766362240043,-500.0,0.00013643,2]
[399445642,1766362240053,-500.0,0.00013643,2]
[399445644,1766362240063,-500.0,0.00013643,2]
[399445645,1766362240072,-500.0,0.00013643,2]
[399445647,1766362240081,-500.0,0.00013643,2]
[399445650,1766362240091,-500.0,0.00013643,2]
[399445653,1766362240100,-2465.22,0.00013643,2]
[399445655,1766362240110,-500.0,0.00013698,2]
[399445657,1766362240120,-500.0,0.00013698,2]
[399445658,1766362240129,-500.0,0.00013698,2]
[399445659,1766362240139,-500.0,0.00013698,2]
[399445661,1766362240149,-500.0,0.00013698,2]
[399445663,1766362240158,-638.42,0.00013698,2]
[399445664,1766362240167,-638.42,0.00013698,2]
[399445665,1766362240177,-638.42,0.00013698,2]
[399445666,1766362240186,-638.42,0.00013698,2]
[399445667,1766362240196,-638.42,0.00013698,2]
[399445668,1766362240205,-638.42,0.00013698,2]
[399445669,1766362240214,-638.42,0.00013698,2]
[399445670,1766362240223,-500.0,0.00013698,2]
[399445671,1766362240232,-500.0,0.00013698,2]
[399445672,1766362240242,-500.0,0.00013698,2]
[399445673,1766362240251,-500.0,0.00013698,2]
[399445674,1766362240260,-500.0,0.00013698,2]
[399445675,1766362240269,-500.0,0.00013698,2]
[399445676,1766362240278,-500.0,0.00013698,2]
[399445677,1766362240287,-500.0,0.00013698,2]
[399445678,1766362240298,-500.0,0.00013698,2]
[399445679,1766362240307,-500.0,0.00013698,2]
[399445680,1766362240317,-500.0,0.00013698,2]
[399445681,1766362240334,-500.0,0.00013698,2]
[399445682,1766362240345,-500.0,0.00013698,2]
[399445683,1766362240354,-500.0,0.00013698,2]
[399445684,1766362240363,-500.0,0.00013698,2]
[399445685,1766362240372,-500.0,0.00013698,2]
[399445686,1766362240382,-500.0,0.00013698,2]
[399445687,1766362240391,-500.0,0.00013698,2]
[399445688,1766362240401,-500.0,0.00013698,2]
[399445689,1766362240410,-505.3255501,0.00013698,2]
[399445690,1766362240420,-500.0,0.00013698,2]
[399445691,1766362240429,-500.0,0.00013698,2]
[399445692,1766362240438,-500.0,0.00013698,2]
[399445693,1766362240448,-500.0,0.00013698,2]
[399445694,1766362240458,-361.71177752,0.00013698,2]
[399445695,1766362240467,-500.0,0.00013698,2]
[399445696,1766362240476,-500.0,0.00013698,2]
[399445697,1766362240486,-500.0,0.00013698,2]
[399445698,1766362240496,-545.77609662,0.00013698,2]
[399445699,1766362240506,-500.0,0.00013698,2]
[399445700,1766362240515,-500.0,0.00013698,2]
[399445701,1766362240524,-500.0,0.00013698,2]
[399445702,1766362240535,-500.0,0.00013698,2]
[399445703,1766362240550,-500.0,0.00013698,2]
[399445704,1766362240561,-500.0,0.00013698,2]
[399445705,1766362240570,-500.0,0.00013698,2]
[399445706,1766362240580,-500.0,0.00013698,2]
[399445707,1766362240600,-500.0,0.00013698,2]
[399445708,1766362240617,-500.0,0.00013698,2]
[399445709,1766362240633,-500.0,0.00013698,2]
[399445710,1766362240646,-500.0,0.00013698,2]
[399445711,1766362240660,-500.0,0.00013698,2]
[399445712,1766362240673,-500.0,0.00013698,2]
[399445713,1766362240687,-500.0,0.00013698,2]
[399445714,1766362240701,-500.0,0.00013698,2]
[399445715,1766362240715,-500.0,0.00013698,2]
[399445716,1766362240729,-500.0,0.00013698,2]
[399445717,1766362240742,-500.0,0.00013698,2]
[399445718,1766362240753,-500.0,0.00013698,2]
[399445719,1766362240767,-500.0,0.00013698,2]
[399445720,1766362240780,-508.98134456,0.00013698,2]
[399445721,1766362240793,-500.0,0.00013698,2]
[399445722,1766362240807,-500.0,0.00013698,2]
[399445723,1766362240821,-500.0,0.00013698,2]
[399445724,1766362240835,-500.0,0.00013698,2]
[399445725,1766362240848,-500.0,0.00013698,2]
[399445726,1766362240862,-500.0,0.00013698,2]
[399445727,1766362240875,-500.0,0.00013698,2]
[399445728,1766362240888,-500.0,0.00013698,2]
[399445729,1766362240901,-500.0,0.00013698,2]
[399445730,1766362240913,-500.0,0.00013698,2]
[399445731,1766362240926,-500.0,0.00013698,2]
[399445732,1766362240940,-500.0,0.00013698,2]
[399445733,1766362240954,-500.0,0.00013698,2]
[399445734,1766362240966,-500.0,0.00013698,2]
[399445735,1766362240979,-500.0,0.00013698,2]
[399445736,1766362240990,-500.0,0.00013698,2]
[399445737,1766362241001,-500.0,0.00013698,2]
[399445738,1766362241013,-500.0,0.00013698,2]
[399445739,1766362241028,-500.0,0.00013698,2]
[399445740,1766362241039,-500.0,0.00013698,2]
[399445742,1766362241051,-500.0,0.00013698,2]
[399445743,1766362241061,-500.0,0.00013698,2]
[399445744,1766362241073,-500.0,0.00013698,2]
[399445745,1766362241086,-500.0,0.00013698,2]
[399445746,1766362241099,-500.0,0.00013698,2]
[399445747,1766362241109,-500.0,0.00013698,2]
[399445748,1766362241119,-500.0,0.00013698,2]
[399445749,1766362241130,-500.0,0.00013698,2]
[399445750,1766362241141,-500.0,0.00013698,2]
[399445751,1766362241153,-500.0,0.00013698,2]
[399445752,1766362241164,-500.0,0.00013698,2]
[399445753,1766362241175,-500.0,0.00013698,2]
[399445754,1766362241187,-500.0,0.00013698,2]
[399445755,1766362241198,-500.0,0.00013698,2]
[399445756,1766362241216,-344.15406571,0.00013698,2]
[399445757,1766362241227,-500.0,0.00013698,2]
[399445758,1766362241238,-500.0,0.00013698,2]
[399445759,1766362241251,-511.95166241,0.00013698,2]
[399445760,1766362241262,-500.0,0.00013698,2]
[399445761,1766362241273,-500.0,0.00013698,2]
[399445762,1766362241286,-504.46336391,0.00013698,2]
[399445763,1766362241297,-500.0,0.00013698,2]
[399445764,1766362241309,-279.56152478,0.00013698,2]
[399445765,1766362241322,-500.0,0.00013698,2]
[399445766,1766362241335,-500.0,0.00013698,2]
[399445767,1766362241347,-500.0,0.00013698,2]
[399445768,1766362241358,-500.0,0.00013698,2]
[399445769,1766362241369,-500.0,0.00013698,2]
[399445770,1766362241381,-500.0,0.00013698,2]
[399445771,1766362241392,-500.0,0.00013698,2]
[399445772,1766362241405,-500.0,0.00013698,2]
[399445773,1766362241417,-500.0,0.00013698,2]
[399445774,1766362241429,-500.0,0.00013698,2]
[399445775,1766362241440,-500.0,0.00013698,2]
[399445776,1766362241452,-500.0,0.00013698,2]
[399445777,1766362241463,-500.0,0.00013698,2]
[399445778,1766362241475,-500.0,0.00013698,2]
[399445779,1766362241487,-500.0,0.00013698,2]
[399445780,1766362241499,-500.0,0.00013698,2]
[399445781,1766362241510,-500.0,0.00013698,2]
[399445782,1766362241522,-500.0,0.00013698,2]
[399445783,1766362241536,-500.0,0.00013698,2]
[399445784,1766362241549,-500.0,0.00013698,2]
[399445785,1766362241562,-500.0,0.00013698,2]
[399445786,1766362241574,-500.0,0.00013698,2]
[399445787,1766362241586,-500.0,0.00013698,2]
[399445788,1766362241598,-500.0,0.00013698,2]
[399445789,1766362241611,-500.0,0.00013698,2]
[399445790,1766362241624,-500.0,0.00013698,2]
[399445791,1766362241636,-500.0,0.00013698,2]
[399445792,1766362241647,-500.0,0.00013698,2]
[399445793,1766362241659,-500.0,0.00013698,2]
[399445794,1766362241673,-500.0,0.00013698,2]
[399445795,1766362241685,-500.0,0.00013698,2]
[399445796,1766362241698,-500.0,0.00013698,2]
[399445797,1766362241709,-567.20870026,0.00013698,2]
[399445798,1766362241722,-500.0,0.00013698,2]
[399445799,1766362241734,-500.0,0.00013698,2]
[399445800,1766362241746,-500.0,0.00013698,2]
[399445801,1766362241757,-500.0,0.00013698,2]
[399445802,1766362241769,-500.0,0.00013698,2]
[399445803,1766362241781,-525.36930819,0.00013698,2]
[399445804,1766362241793,-151.0,0.00013699,2]
[399445805,1766362241805,-151.0,0.00013699,2]
[399445806,1766362241816,-500.0,0.00013699,2]
[399445807,1766362241828,-500.0,0.00013699,2]
[399445808,1766362241839,-370.25011365,0.00013699,2]
[399445809,1766362241851,-500.0,0.00013699,2]
[399445810,1766362241862,-500.0,0.00013699,2]
[399445811,1766362241874,-500.0,0.00013699,2]
[399445812,1766362241885,-500.0,0.00013699,2]
[399445813,1766362241897,-500.0,0.00013699,2]
[399445814,1766362241908,-500.0,0.00013699,2]
[399445815,1766362241922,-500.0,0.00013699,2]
[399445816,1766362241934,-500.0,0.00013699,2]
[399445817,1766362241946,-500.0,0.00013699,2]
[399445818,1766362241958,-500.0,0.00013699,2]
[399445819,1766362241970,-500.0,0.00013699,2]
[399445820,1766362241981,-500.0,0.00013699,2]
[399445821,1766362241993,-500.0,0.00013699,2]
[399445822,1766362242006,-500.0,0.00013699,2]
[399445823,1766362242017,-500.0,0.00013699,2]
[399445824,1766362242029,-500.0,0.00013699,2]
[399445825,1766362242040,-500.0,0.00013699,2]
[399445826,1766362242052,-500.0,0.00013699,2]
[399445827,1766362242064,-500.0,0.00013699,2]
[399445828,1766362242076,-450.34837015,0.00013699,2]
[399445829,1766362242087,-500.0,0.00013699,2]
[399445830,1766362242105,-500.0,0.00013699,2]
[399445831,1766362242126,-500.0,0.00013699,2]
[399445832,1766362242143,-500.0,0.00013699,2]
[399445833,1766362242162,-500.0,0.00013699,2]
[399445834,1766362242173,-500.0,0.00013699,2]
[399445835,1766362242185,-500.0,0.00013699,2]
[399445836,1766362242199,-2072.78,0.000137,2]
[399445837,1766362242225,-2072.78,0.000137,2]
[399445838,1766362242245,-2072.78,0.000137,2]
[399445839,1766362242258,-2072.78,0.000137,2]
[399445840,1766362242269,-2072.78,0.000137,2]
[399445841,1766362242282,-4841.4809136,0.00013712,2]
[399445842,1766362242294,-2465.22,0.00013917,2]
[399445843,1766362242306,-631.78490397,0.00013951,2]
[399445844,1766362242318,-4609.0,0.00013974,2]
[399445845,1766362242331,-422.67,0.0001413,2]
[399445846,1766362242343,-638.42,0.0001419,2]
[399445847,1766362242355,-500.0,0.0001419,2]
[399445848,1766362242366,-1000.0,0.00014191,2]
[399445849,1766362242378,-1000.0,0.00014191,2]
[399445850,1766362242389,-326.71494238,0.00014191,2]
[399445851,1766362242400,-1000.0,0.00014191,2]
[399445852,1766362242412,-1000.0,0.00014191,2]
[399445853,1766362242424,-1000.0,0.00014191,2]
[399445854,1766362242435,-1000.0,0.00014191,2]
[399445855,1766362242447,-1000.0,0.00014191,2]
[399445856,1766362242458,-1000.0,0.00014191,2]
[399445857,1766362242469,-1000.0,0.00014191,2]
[399445858,1766362242481,-1000.0,0.00014191,2]
[399445859,1766362242492,-1144.26340267,0.00014191,2]
[399445860,1766362242503,-1000.0,0.00014191,2]
[399445861,1766362242514,-1000.0,0.00014191,2]
[399445862,1766362242525,-1000.0,0.00014191,2]
[399445863,1766362242538,-866.15226393,0.00014191,2]
[399445864,1766362242552,-1000.0,0.00014191,2]
[399445865,1766362242564,-1000.0,0.00014191,2]
[399445866,1766362242576,-1000.0,0.00014191,2]
[399445867,1766362242589,-1000.0,0.00014191,2]
[399445868,1766362242600,-1000.0,0.00014191,2]
[399445869,1766362242612,-1000.0,0.00014191,2]